Cogmind - Beta 12 @@@ ROGUE MODE // 2023.09.19 @ 17:32:33 Player: Kisscool Result: Destroyed by as-87370 with Assembled Blade Performance ------------- Evolutions (0) 0 Regions Visited (2) 400 Robots Destroyed (11) 55 Value Destroyed (215) 215 Prototype IDs (0) 0 Alien Tech Used (0) 0 Bonus (0) 0 TOTAL SCORE: 670 Bonus ------- None Cogmind --------- Core Integrity 0/250 Matter 268/300 Energy 125/125 System Corruption 0% Temperature Cool (4) Movement Flying (37) Location -10/Mines Parts ------- > --- POWER (1) -------- Light Ion Engine > --- PROPULSION (2) --- Flight Unit Flight Unit > --- UTILITY (2) ------ Small Storage Unit > --- WEAPON (2) ------- (None) > --- INVENTORY (8) ---- Light Ion Engine Wheel Compact Wheel Hover Unit Heat Sink Seismic Detector Medium Laser Assault Rifle Peak State ------------ > --- POWER ------------ Ion Engine > --- PROPULSION ------- Wheel Wheel > --- UTILITY ---------- Small Storage Unit Improved Terrain Scanner > --- WEAPON ----------- Small Laser Assault Rifle > --- INVENTORY -------- Light Ion Engine Aluminum Leg Wheel Wheel Compact Wheel Seismic Detector Assault Rifle [Rating: 9] Favorites ----------- Power Ion Engine Engine Ion Engine Propulsion Wheel Wheel Wheel Flight Unit Flight Unit Utility Small Storage Unit Device Improved Terrain Scanner Storage Small Storage Unit Weapon Assault Rifle Energy Gun Medium Laser Ballistic Gun Assault Rifle Build | -11 -10 -10 ------- Run | Jun Mat Min Slots Evolved . | . . . Power . | . . . Propulsion . | . . . Utility . | . . . Weapon . | . . . Parts Attached 26 | 10 13 3 Power 4 | 2 1 1 Engine 4 | 2 1 1 Core . | . . . Reactor . | . . . Propulsion 10 | 2 6 2 Treads . | . . . Leg . | . . . Wheel 6 | 2 4 . Hover . | . . . Flight 4 | . 2 2 Utility 6 | 4 2 . Device 3 | 2 1 . Storage 3 | 2 1 . Processor . | . . . Hackware . | . . . Protection . | . . . Artifact . | . . . Weapon 6 | 2 4 . Energy Gun 3 | 1 2 . Energy Cannon . | . . . Ballistic Gun 3 | 1 2 . Ballistic Cannon . | . . . Launcher . | . . . Special Weapon . | . . . Impact Weapon . | . . . Slashing Weapon . | . . . Piercing Weapon . | . . . Special Melee Weapon . | . . . Unidentified Prototypes . | . . . Parts Lost 4 | . 1 3 Power . | . . . Propulsion 1 | . . 1 Utility 1 | . . 1 Weapon 2 | . 1 1 Highest Loss Streak 3 | . 1 3 To Critical Strikes . | . . . Average Slot Usage (%) 94 | . 99 78 Engine 14 | . 14 14 Wheel 24 | . 28 14 Flight 2 | . . 11 Device 11 | . 13 7 Storage 14 | . 14 14 Energy Gun 7 | . 10 . Ballistic Gun 17 | . 18 16 Naked Turns . | . . . Heaviest Build 15 | 14 15 15 Greatest Support 26 | 20 26 20 Greatest Overweight (x) . | . . . Average Overweight (x) . | . . . Largest Inventory Capacity 8 | 8 8 8 Average Capacity 7 | 6 8 8 Most Carried 8 | 8 8 8 Average Carried 6 | 3 7 7 Final Capacity 8 | 8 8 8 Final Carried 8 | 7 8 8 Class Distribution -------------------- 79% | Mutant 20% | Scavenger-Mutant Dominant Class ---------------- Mutant | -10/Materials Mutant | -10/Mines Resources | -11 -10 -10 ----------- Run | Jun Mat Min Matter Collected 476 | 300 176 . Remotely 192 | 192 . . Salvage Created 364 | 116 248 . Parts 27 | 7 20 . Haulers Intercepted . | . . . Recyclers Shooed 1 | . 1 . Parts Field Recycled . | . . . Retrieved Matter . | . . . Parts Self-Destructed . | . . . Prevented . | . . . Kills | -11 -10 -10 ------- Run | Jun Mat Min Combat Hostiles Destroyed 7 | . 7 . Guns 7 | . 7 . Classes Destroyed 5 | 2 3 . Tunneler 2 | 2 . . Recycler 1 | 1 . . Watcher 1 | . 1 . Swarmer 3 | . 3 . Grunt 4 | . 4 . Best Kill Streak 8 | 2 8 . Combat Bots Only 7 | . 7 . Max Kills in Single Turn 1 | 1 1 . Gunslinging . | . . . Exploded . | . . . Melee . | . . . Uniques/NPCs Destroyed . | . . . Combat | -11 -10 -10 -------- Run | Jun Mat Min Damage Taken 823 | . 394 429 Core 253 | . 128 125 Absorbed by Shields . | . . . Core Remaining (%) 100 | 100 . . Volleys Fired 24 | 4 18 2 Largest 2 | 1 2 2 Hottest 100 | 40 100 40 Shots Fired 42 | 4 34 4 Gun 42 | 4 34 4 Cannon . | . . . Launcher . | . . . Special . | . . . Kinetic 21 | . 17 4 Thermal 21 | 4 17 . Explosive . | . . . Electromagnetic . | . . . Robot Hit Streak 7 | 4 7 . Robot Miss Streak 2 | . 2 2 Penetration Max . | . . . Secondary Targets 3 | . 3 . Max Gunslinging Chain 1 | . 1 . Shots Hit Robots 26 | 4 22 . Core Hits 17 | 4 12 1 Critical Kills . | . . . Critical Parts Destroyed . | . . . Critical Strikes . | . . . Melee Attacks . | . . . Impact . | . . . Slashing . | . . . Piercing . | . . . Sneak Attacks . | . . . Combat Hostiles . | . . . Follow-up Attacks . | . . . Damage Inflicted 335 | 43 281 11 Guns 335 | 43 281 11 Cannons . | . . . Explosions . | . . . Melee . | . . . Ramming . | . . . Kinetic 142 | . 131 11 Thermal 193 | 43 150 . Explosive . | . . . Electromagnetic . | . . . Impact . | . . . Slashing . | . . . Piercing . | . . . Highest Corruption . | . . . Average Corruption . | . . . Corruption Purged . | . . . Corruption Blocked . | . . . Overload Shots . | . . . Overflow Damage . | . . . Projectiles . | . . . Explosions . | . . . Melee . | . . . Knockbacks . | . . . Impact . | . . . Kinetic . | . . . Secondary . | . . . Self-Inflicted Damage . | . . . Shots . | . . . Rammed . | . . . Targets Rammed . | . . . Kicked . | . . . Crushed . | . . . Highest Temperature 353 | . 353 4 Average Temperature 163 | . 166 4 Received Heat Transfer 185 | . 165 20 Effects 3 | . 3 . Interference 2 | . 2 . Damage (minor) 1 | . 1 . Siege Activations . | . . . Robots Corrupted . | . . . Combat Hostiles . | . . . Parts Fried . | . . . Impact Corruptions . | . . . Robots Melted . | . . . Combat Hostiles . | . . . Parts Melted . | . . . Heat Transferred 544 | 100 444 . Parts Sabotaged . | . . . Parts Stolen . | . . . Parts Stripped . | . . . Power Chain Reactions . | . . . Missiles Intercepted . | . . . Alert | -11 -10 -10 ------- Run | Jun Mat Min Peak Influence 229 | 15 229 88 Initial 88 | . 9 88 Average 80 | 5 111 73 Maximum Alert Level 1 | . 1 . Low Security (%) 80 | 100 67 100 Level 1 19 | . 32 . Level 2 . | . . . Level 3 . | . . . Level 4 . | . . . Level 5 . | . . . High Security . | . . . Max Security . | . . . Squads Dispatched 1 | . 1 . Investigation 1 | . 1 . Extermination . | . . . Reinforcement . | . . . Assault . | . . . Garrison . | . . . Intercept . | . . . Searches Triggered . | . . . Construction Impeded . | . . . Haulers Reinforced . | . . . Active Scanning Responses . | . . . Cargo Convoy Interrupts . | . . . Stealth | -11 -10 -10 --------- Run | Jun Mat Min Distress Signals 1 | . 1 . Communications Jammed . | . . . Distress Signals . | . . . Times Spotted 19 | . 13 6 Peak Tracking Total 9 | . 9 8 Tactical Retreats 1 | . 1 . Traps | -11 -10 -10 ------- Run | Jun Mat Min Traps Triggered 1 | . 1 . Indirectly . | . . . Trap Hack Attempts . | . . . Triggered . | . . . Disarmed . | . . . Reprogrammed . | . . . Reused . | . . . Traps Extracted . | . . . Installed 3 | . . 3 Triggered . | . . . Machines | -11 -10 -10 ---------- Run | Jun Mat Min Machines Disabled . | . . . Max in Single Turn . | . . . Machines Repaired . | . . . Machines Sabotaged . | . . . Overloaded Fab Kills . | . . . Hacking | -11 -10 -10 --------- Run | Jun Mat Min Machines Accessed 2 | . 2 . Terminals 2 | . 2 . Fabricators . | . . . Repair Stations . | . . . Recycling Units . | . . . Scanalyzers . | . . . Garrison Access . | . . . Total Hacks 5 | . 5 . Successful 4 | . 4 . Failed 1 | . 1 . Catastrophic . | . . . Database Lockouts . | . . . Manual . | . . . Terminals 5 | . 5 . Fabricators . | . . . Repair Stations . | . . . Recycling Units . | . . . Scanalyzers . | . . . Garrison Access . | . . . Terminal Hacks 4 | . 4 . Robot Analysis 1 | . 1 . Alert Level 1 | . 1 . Hauler Manifests 1 | . 1 . Zone Layout 1 | . 1 . Fabricator Hacks . | . . . Repair Station Hacks . | . . . Recycling Unit Hacks . | . . . Scanalyzer . | . . . Garrison Access Hacks . | . . . Unauthorized Hacks . | . . . Terminals . | . . . Fabricators . | . . . Repair Stations . | . . . Recycling Units . | . . . Scanalyzers . | . . . Garrison Access . | . . . Data Cores Recovered . | . . . Used . | . . . Hacking Detections 1 | . 1 . Full Trace Events . | . . . Feedback Events . | . . . Feedback Blocked . | . . . Robot Schematics Acquired . | . . . Robots Built . | . . . Authchips . | . . . Time . | . . . Total Robot Build Rating . | . . . Part Schematics Acquired . | . . . Parts Built . | . . . Authchips . | . . . Time . | . . . Total Part Build Rating . | . . . Parts Repaired . | . . . Time . | . . . Parts Recycled . | . . . Recycled Matter . | . . . Retrieved Matter . | . . . Retrieved Components . | . . . Parts Scanalyzed . | . . . Part Schematics Acquired . | . . . Parts Damaged . | . . . Bothacking | -11 -10 -10 ------------ Run | Jun Mat Min Used RIF Installer . | . . . Robots Hacked . | . . . Non-combat . | . . . Combat . | . . . Robot Hacks Applied . | . . . Relay Couplers Released . | . . . Fabnet Peak Effective % . | . . . Robots Rewired . | . . . Allies Hacked . | . . . Hacks Repelled . | . . . Allies | -11 -10 -10 -------- Run | Jun Mat Min Total Allies . | . . . Largest Group . | . . . Highest-Rated Group . | . . . Highest-Rated Ally . | . . . Total Orders . | . . . Ally Attacks . | . . . Total Damage . | . . . Kills . | . . . Allies Corrupted . | . . . Allies Melted . | . . . Intel | -11 -10 -10 ------- Run | Jun Mat Min Robot Analysis Total 1 | . 1 . Derelict Logs Recovered . | . . . Drone Launches . | . . . Drone Recoveries . | . . . Exploration | -11 -10 -10 ------------- Run | Jun Mat Min Turns Passed 346 | 77 204 65 Spaces Moved 293 | 55 146 92 Core 6 | 6 . . Treads . | . . . Legs . | . . . Wheels 232 | 49 146 37 Hover . | . . . Flight 55 | . . 55 Fastest Speed 37 | 50 80 37 Average Speed 71 | 76 80 54 Slowest Speed 90 | 80 90 80 Overloaded Moves . | . . . Propulsion Burnouts . | . . . Robots Hopped . | . . . Cave-ins Triggered . | . . . Exploration Rate (%) 18 | 3 28 24 Regions Visited 2 Branch Regions 1 Pre-discovered Areas . | . . . Known Exits Taken . | . . . Unknown Exits Taken 2 | 1 1 . Scrap Searched . | . . . Spaces Dug . | . . . Terrain Destroyed . | . . . Melee . | . . . Projectile . | . . . AOE . | . . . Terrain Rammed . | . . . Walls Destroyed . | . . . Machines Disabled . | . . . Actions | -11 -10 -10 --------- Run | Jun Mat Min Total 386 | 84 199 103 Wait 5 | . 5 . Move 291 | 54 145 92 Hop . | . . . Pick Up 23 | 12 10 1 Fast Attach 5 | 5 . . Attach 11 | 4 6 1 Detach 2 | 1 . 1 Swap 10 | 1 7 2 Drop 12 | 3 8 1 Fire 24 | 4 18 2 Melee . | . . . Ram . | . . . Kick . | . . . Crush . | . . . Escape Stasis . | . . . Rewire . | . . . Trap 3 | . . 3 Miscellaneous . | . . . Route ------- -11/Junkyard -10/Materials -10/Mines History --------- Turn | Location | Event 22 | -11/Junkyard | Discovered new exit (range 15) 78 | -11/Junkyard | Entered Materials 167 | -10/Materials | Discovered new exit (range 13) 210 | -10/Materials | Core integrity fell below 50% 236 | -10/Materials | Destroyed 7 combat bots 282 | -10/Materials | Entered Mines 288 | -10/Mines | Assembled infested the area 321 | -10/Mines | Core integrity fell below 20% 335 | -10/Mines | Found a hidden stash of uninstalled traps 347 | -10/Mines | Lost 3 parts (1n1u1w) 347 | -10/Mines | Destroyed by as-87370 with Assembled Blade Last Messages --------------- 00311_ D-53 Grenadier unfolds itself. 00312_ The unstable cave ceiling collapses. 00312_ Wheel destroyed. 00312_ T-07 Excavator destroyed. 00316_ Imp. Terrain Scanner destroyed. 00316_ Assault Rifle destroyed. 00319_ The unstable cave ceiling collapses. 00323_ U-05 Engineer lays Concrete. 00325_ The unstable cave ceiling collapses. 00335_ A stash of uninstalled traps is collected here! 00336_ Installed EMP Trap. 00337_ K-01 Serf collects debris. 00337_ Installed EMP Trap. 00339_ as-13619 sneak attacks. 00339_ R-06 Scavenger system corrupted by crushing effect. 00342_ K-01 Serf collects debris. 00343_ as-87370 sneak attacks. 00343_ K-01 Serf destroyed. 00346_ Dropped Ion Engine. 00346_ Acquired Lgt. Ion Engine. Map ----- +----------------------------------------------------+ | ##???????????????????????????????????????????????? | | ##??????????????????????????????????????????????? | | #???????????????????????????????????????????????? | | #???????????????????????????????????????????????? | | #???????????????????????????????????????????????? | | #???????????????????????????????????????????????? | | ##?#?????????????????????????????????????????????? | | ####?????? ?????????????????????????????????????? | | # ##???? ????????????????????????????????????? | | ##??# #???????????????????????????????????? | | ### #???????????????????????????????????? | | #????????????????????????????????????? | | #?????????????????????????????????????? | | #??????????????????????????????????????? | | #??????????????????????????????????????? | | #???????????????????????????????????????? | | #????????????????????????????????????????? | | ##????????????????????????????????????????? | | ##?####???????????????????????????????????? | | ### ####?????????###????????????????????? | | ###?####?? ?????????????????????? | | ### ##?a#?????????????????????? | | ## ## ##???#????????????????? | | #### r ## #????????????????? | | #??## ^ aaa ##???????????????? | | # #???# ^ ^ @* #???????????????? | | ## ##???## ### #???????????????? | | ?# ####?????# ##???## #???????????????? | | ?# #????????# #???????? #??????????????? | | ?# ???????# #?????????? ?????????????? | | ?# ???????# ## ##?????????????????????????? | | ?## ##??????## ######??????????????????????????? | | ??####????????####???????????????????????????????? | | ?????????????????????????????????????????????????? | | ?????????????????????????????????????????????????? | | | | | | | | | | | | | | | | | | | | | | | | | | | | | | | +----------------------------------------------------+ Best States ------------- Heat Dissipation 25 Energy Generation 10 Energy Capacity 250 Matter Stores 300 Matter Capacity 300 Sight Range 16 Terrain Scan Range 16 Terrain Scan Density 10 Evasion (%) 62 Item Schematics ----------------- None Robot Schematics ------------------ None Fabricated ------------ Nothing Alien Tech Used ----------------- None Achievements -------------- None Challenges ------------ None Game ------ Seed SensorAssemblyDetonator Manual? 0 Play Time 00:24:40 Cumulative 37.0 hours Start 2023.09.19 @ 16:55:07 End 2023.09.19 @ 17:32:33 Sessions 1 Manual Loads 0 Difficulty Rogue Special Mode None Game No. 19 Rogue 19 Adventurer 0 Explorer 0 Win Type - Total 0 Types 0/0/0/0/0/0/0/0/0 Lore% 16 Gallery% 33 Achievement% 25 Wizard Run 0 Options --------- ASCII 0 Keyboard 0 Movement Numpad Keybinds 0 Fullscreen 2 Font 18/Terminus Map View 76x50 Tactical HUD 1 Map Filters NONE Filters NONE Steam 1 RUN: 92c65a07-8e2a-4e6e-980f-3ec24ee29777